fUSD/lending_fUSD_20250823
["ID","MTS","AMOUNT","RATE_DAILY","PERIOD"]
[380939514,1755909090863,-603.68,0.00014246,2]
[380939515,1755909090872,-792.16,0.00014246,2]
[380939516,1755909090882,-792.27,0.00014246,2]
[380939517,1755909090891,-609.49,0.00014246,2]
[380939518,1755909090901,-400.0,0.00014246,2]
[380939519,1755909090910,-400.0,0.00014246,2]
[380939520,1755909090919,-400.0,0.00014246,2]
[380939521,1755909090929,-400.0,0.00014246,2]
[380939522,1755909090939,-400.0,0.00014246,2]
[380939523,1755909090949,-174.77240282,0.00014246,2]
[380939524,1755909090959,-400.0,0.00014246,2]
[380939525,1755909090968,-400.0,0.00014246,2]
[380939526,1755909090978,-540.56237513,0.00014246,2]
[380939527,1755909090987,-401.76004311,0.00014246,2]
[380939528,1755909090999,-426.25,0.00014246,2]
[380939529,1755909091008,-981.73,0.00014246,2]
[380939530,1755909091017,-400.0,0.00014246,2]
[380939531,1755909091027,-400.0,0.00014246,2]
[380939532,1755909091037,-466.29,0.00014246,2]
[380939533,1755909091047,-1058.6,0.00014246,2]
[380939534,1755909091056,-400.0,0.00014246,2]
[380939535,1755909091065,-400.0,0.00014246,2]
[380939536,1755909091074,-1201.08,0.00014246,2]
[380939537,1755909091084,-400.0,0.00014246,2]
[380939538,1755909091093,-738.76,0.00014246,2]
[380939539,1755909091103,-825.5,0.00014246,2]
[380939540,1755909091112,-401.47483136,0.00014246,2]
[380939541,1755909091122,-400.0,0.00014246,2]
[380939542,1755909091132,-233.23,0.00014246,2]
[380939543,1755909091141,-958.1,0.00014246,2]
[380939544,1755909091150,-1111.07,0.00014246,2]
[380939545,1755909091159,-1368.88,0.00014246,2]
[380939546,1755909091170,-400.0,0.00014246,2]
[380939547,1755909091179,-509.27,0.00014246,2]
[380939548,1755909091191,-468.64,0.00014246,2]
[380939549,1755909091201,-593.59,0.00014246,2]
[380939550,1755909091210,-881.56,0.00014246,2]
[380939551,1755909091220,-750.95,0.00014246,2]
[380939552,1755909091230,-400.0,0.00014246,2]
[380939553,1755909091242,-401.82,0.00014246,2]
[380939554,1755909091252,-706.36,0.00014246,2]
[380939555,1755909091261,-728.88,0.00014246,2]
[380939556,1755909091271,-557.47,0.00014246,2]
[380939557,1755909091282,-400.0,0.00014246,2]
[380939558,1755909091291,-400.0,0.00014246,2]
[380939559,1755909091301,-400.0,0.00014246,2]
[380939560,1755909091310,-402.85442556,0.00014246,2]
[380939561,1755909091319,-400.0,0.00014246,2]
[380939562,1755909091329,-952.67,0.00014246,2]
[380939563,1755909091339,-692.7,0.00014246,2]
[380939564,1755909091349,-255.44,0.00014246,2]
[380939565,1755909091358,-400.0,0.00014246,2]
[380939566,1755909091367,-400.0,0.00014246,2]
[380939567,1755909091377,-400.0,0.00014246,2]
[380939568,1755909091387,-400.0,0.00014246,2]
[380939569,1755909091397,-779.31,0.00014246,2]
[380939570,1755909091407,-1122.02,0.00014246,2]
[380939571,1755909091416,-400.0,0.00014246,2]
[380939572,1755909091427,-1582.88,0.00014246,2]
[380939573,1755909091437,-577.4,0.00014246,2]
[380939574,1755909091446,-564.14,0.00014246,2]
[380939575,1755909091456,-786.68,0.00014246,2]
[380939576,1755909091466,-400.0,0.00014246,2]
[380939577,1755909091476,-1198.24,0.00014246,2]
[380939578,1755909091486,-400.0,0.00014246,2]
[380939579,1755909091496,-956.63,0.00014246,2]
[380939580,1755909091506,-400.0,0.00014246,2]
[380939581,1755909091515,-673.4,0.00014246,2]
[380939582,1755909091525,-848.19,0.00014246,2]
[380939583,1755909091535,-704.4,0.00014246,2]
[380939584,1755909091545,-400.0,0.00014246,2]
[380939585,1755909091555,-437.85,0.00014246,2]
[380939586,1755909091566,-548.8,0.00014246,2]
[380939587,1755909091576,-507.03,0.00014246,2]
[380939588,1755909091586,-437.95,0.00014246,2]
[380939589,1755909091596,-400.0,0.00014246,2]
[380939590,1755909091606,-1155.73,0.00014246,2]
[380939591,1755909091616,-818.95,0.00014246,2]
[380939592,1755909091626,-556.41,0.00014246,2]
[380939593,1755909091636,-431.52,0.00014246,2]
[380939594,1755909091646,-400.0,0.00014246,2]
[380939595,1755909091655,-850.86,0.00014246,2]
[380939596,1755909091665,-402.17440969,0.00014246,2]
[380939597,1755909091675,-400.0,0.00014246,2]
[380939598,1755909091685,-487.71,0.00014246,2]
[380939599,1755909091694,-400.0,0.00014246,2]
[380939600,1755909091704,-838.37,0.00014246,2]
[380939601,1755909091714,-1159.8,0.00014246,2]
[380939602,1755909091724,-484.71,0.00014246,2]
[380939603,1755909091734,-506.13,0.00014246,2]
[380939604,1755909091744,-430.8,0.00014246,2]
[380939605,1755909091754,-749.94,0.00014246,2]
[380939606,1755909091763,-924.83,0.00014246,2]
[380939607,1755909091773,-1313.72,0.00014246,2]
[380939608,1755909091783,-478.67,0.00014246,2]
[380939609,1755909091793,-400.0,0.00014246,2]
[380939610,1755909091803,-400.0,0.00014246,2]
[380939611,1755909091812,-1444.09,0.00014246,2]
[380939612,1755909091822,-400.0,0.00014246,2]
[380939613,1755909091831,-404.76041891,0.00014246,2]
[380939614,1755909091841,-765.27,0.00014246,2]
[380939615,1755909091850,-400.0,0.00014246,2]
[380939616,1755909091861,-400.0,0.00014246,2]
[380939617,1755909091871,-400.0,0.00014246,2]
[380939618,1755909091881,-6099.92,0.00014246,2]
[380939619,1755909091891,-400.0,0.00014246,2]
[380939620,1755909091900,-444.7,0.00014246,2]
[380939621,1755909091910,-400.0,0.00014246,2]
[380939622,1755909091920,-544.24,0.00014246,2]
[380939623,1755909091930,-400.0,0.00014246,2]
[380939624,1755909091940,-993.51,0.00014246,2]
[380939625,1755909091950,-400.0,0.00014246,2]
[380939626,1755909091960,-605.79,0.00014246,2]
[380939627,1755909091969,-400.0,0.00014246,2]
[380939628,1755909091979,-830.79,0.00014246,2]
[380939629,1755909091989,-400.0,0.00014246,2]
[380939630,1755909091999,-514.4,0.00014246,2]
[380939631,1755909092009,-1071.62,0.00014246,2]
[380939632,1755909092019,-574.14,0.00014246,2]
[380939633,1755909092029,-662.65,0.00014246,2]
[380939634,1755909092039,-477.51,0.00014246,2]
[380939635,1755909092049,-1245.75,0.00014246,2]
[380939636,1755909092058,-622.81,0.00014246,2]
[380939637,1755909092068,-280.1139932,0.00014246,2]
[380939638,1755909092078,-757.12,0.00014246,2]
[380939639,1755909092087,-508.82565545,0.00014246,2]
[380939640,1755909092097,-516.75,0.00014246,2]
[380939641,1755909092107,-400.0,0.00014246,2]
[380939642,1755909092117,-311.86,0.00014246,2]
[380939643,1755909092126,-1114.83,0.00014246,2]
[380939644,1755909092136,-468.67,0.00014246,2]
[380939645,1755909092145,-400.0,0.00014246,2]
[380939646,1755909092155,-655.72,0.00014246,2]
[380939647,1755909092165,-400.0,0.00014246,2]
[380939648,1755909092175,-490.46,0.00014246,2]
[380939649,1755909092185,-1549.38,0.00014246,2]
[380939650,1755909092199,-400.0,0.00014246,2]
[380939651,1755909092209,-1455.01,0.00014246,2]
[380939652,1755909092219,-402.98,0.00014246,2]
[380939653,1755909092231,-400.0,0.00014246,2]
[380939654,1755909092240,-400.0,0.00014246,2]
[380939655,1755909092251,-553.89,0.00014246,2]
[380939656,1755909092260,-400.0,0.00014246,2]
[380939657,1755909092271,-500.59,0.00014246,2]
[380939658,1755909092283,-400.0,0.00014246,2]
[380939659,1755909092293,-958.06,0.00014246,2]
[380939660,1755909092303,-1000.0,0.00014246,2]
[380939661,1755909092313,-400.0,0.00014246,2]
[380939662,1755909092322,-400.0,0.00014246,2]
[380939663,1755909092332,-400.0,0.00014246,2]
[380939664,1755909092342,-400.0,0.00014246,2]
[380939665,1755909092352,-400.0,0.00014246,2]
[380939666,1755909092362,-400.0,0.00014246,2]
[380939667,1755909092373,-765.26,0.00014246,2]
[380939668,1755909092383,-400.0,0.00014246,2]
[380939669,1755909092394,-430.15,0.00014246,2]
[380939670,1755909092404,-684.36,0.00014246,2]
[380939671,1755909092414,-1609.25,0.00014246,2]
[380939672,1755909092425,-509.39,0.00014246,2]
[380939673,1755909092435,-748.86,0.00014246,2]
[380939674,1755909092446,-794.68,0.00014246,2]
[380939675,1755909092456,-632.68,0.00014246,2]
[380939676,1755909092466,-400.0,0.00014246,2]
[380939677,1755909092476,-1326.0,0.00014246,2]
[380939678,1755909092486,-400.0,0.00014246,2]
[380939679,1755909092497,-654.86,0.00014246,2]
[380939680,1755909092508,-754.86,0.00014246,2]
[380939681,1755909092518,-400.0,0.00014246,2]
[380939682,1755909092528,-400.0,0.00014246,2]
[380939683,1755909092538,-1273.55,0.00014246,2]
[380939684,1755909092549,-535.34,0.00014246,2]
[380939685,1755909092560,-1058.52,0.00014246,2]
[380939686,1755909092570,-584.52,0.00014246,2]
[380939687,1755909092580,-542.29,0.00014246,2]
[380939688,1755909092590,-424.21,0.00014246,2]
[380939689,1755909092600,-1513.64,0.00014246,2]
[380939690,1755909092610,-400.0,0.00014246,2]
[380939691,1755909092620,-400.0,0.00014246,2]
[380939692,1755909092631,-619.27,0.00014246,2]
[380939693,1755909092641,-559.29,0.00014246,2]
[380939694,1755909092653,-634.92,0.00014246,2]
[380939695,1755909092663,-1090.13,0.00014246,2]
[380939696,1755909092672,-400.0,0.00014246,2]
[380939697,1755909092682,-675.54,0.00014246,2]
[380939698,1755909092693,-440.2,0.00014246,2]
[380939699,1755909092703,-1041.84,0.00014246,2]
[380939700,1755909092713,-484.32,0.00014246,2]
[380939701,1755909092723,-400.0,0.00014246,2]
[380939702,1755909092733,-400.0,0.00014246,2]
[380939703,1755909092744,-1066.21,0.00014246,2]
[380939704,1755909092754,-1111.63,0.00014246,2]
[380939705,1755909092764,-1076.24,0.00014246,2]
[380939706,1755909092774,-1929.62,0.00014246,2]
[380939707,1755909092784,-558.61,0.00014246,2]
[380939708,1755909092794,-543.28,0.00014246,2]
[380939709,1755909092805,-409.53,0.00014246,2]
[380939710,1755909092815,-400.0,0.00014246,2]
[380939711,1755909092824,-453.31,0.00014246,2]
[380939712,1755909092834,-400.0,0.00014246,2]
[380939713,1755909092844,-656.72,0.00014246,2]
[380939714,1755909092854,-639.7,0.00014246,2]
[380939715,1755909092864,-630.26,0.00014246,2]
[380939716,1755909092874,-691.77,0.00014246,2]
[380939717,1755909092883,-984.96,0.00014246,2]
[380939718,1755909092893,-484.18,0.00014246,2]
[380939719,1755909092902,-854.82,0.00014246,2]
[380939720,1755909092912,-400.0,0.00014246,2]
[380939721,1755909092922,-400.0,0.00014246,2]
[380939722,1755909092932,-900.69,0.00014246,2]
[380939723,1755909092942,-400.0,0.00014246,2]
[380939724,1755909092953,-400.0,0.00014246,2]
[380939725,1755909092963,-849.76,0.00014246,2]
[380939726,1755909092973,-440.43,0.00014246,2]
[380939727,1755909092982,-463.91,0.00014246,2]
[380939728,1755909092993,-400.0,0.00014246,2]
[380939729,1755909093003,-548.44,0.00014246,2]
[380939730,1755909093014,-734.69,0.00014246,2]
[380939731,1755909093024,-633.7,0.00014246,2]
[380939732,1755909093033,-400.0,0.00014246,2]
[380939733,1755909093043,-774.74,0.00014246,2]
[380939734,1755909093053,-1283.05,0.00014246,2]
[380939735,1755909093063,-400.0,0.00014246,2]
[380939736,1755909093073,-684.33,0.00014246,2]
[380939737,1755909093083,-554.16,0.00014246,2]
[380939738,1755909093093,-923.64,0.00014246,2]
[380939739,1755909093103,-400.0,0.00014246,2]
[380939740,1755909093114,-831.09,0.00014246,2]
[380939741,1755909093125,-400.0,0.00014246,2]
[380939742,1755909093136,-400.0,0.00014246,2]
[380939743,1755909093147,-724.59,0.00014246,2]
[380939744,1755909093158,-515.8,0.00014246,2]
[380939745,1755909093168,-1301.68,0.00014246,2]
[380939746,1755909093179,-618.62,0.00014246,2]
[380939747,1755909093190,-400.0,0.00014246,2]
[380939748,1755909093201,-400.0,0.00014246,2]
[380939749,1755909093212,-1002.03,0.00014246,2]
[380939750,1755909093222,-400.0,0.00014246,2]
[380939751,1755909093233,-400.0,0.00014246,2]
[380939752,1755909093243,-400.0,0.00014246,2]
[380939753,1755909093253,-940.39,0.00014246,2]
[380939754,1755909093264,-400.0,0.00014246,2]
[380939755,1755909093274,-400.0,0.00014246,2]
[380939756,1755909093284,-400.0,0.00014246,2]
[380939757,1755909093294,-682.02,0.00014246,2]
[380939758,1755909093305,-933.3,0.00014246,2]
[380939759,1755909093315,-466.33,0.00014246,2]
[380939760,1755909093325,-400.0,0.00014246,2]
[380939761,1755909093336,-789.37,0.00014246,2]
[380939762,1755909093347,-400.0,0.00014246,2]
[380939763,1755909093357,-535.1,0.00014246,2]
[380939764,1755909093367,-1243.51,0.00014246,2]
[380939765,1755909093378,-581.93,0.00014246,2]
[380939766,1755909093388,-412.28,0.00014246,2]
[380939767,1755909093398,-828.94,0.00014246,2]
[380939768,1755909093410,-400.0,0.00014246,2]
[380939769,1755909093420,-712.67,0.00014246,2]
[380939770,1755909093431,-779.34,0.00014246,2]
[380939771,1755909093441,-636.7,0.00014246,2]
[380939772,1755909093451,-400.0,0.00014246,2]
[380939773,1755909093462,-495.96,0.00014246,2]
[380939774,1755909093472,-628.81,0.00014246,2]
[380939775,1755909093483,-423.93501666,0.00014246,2]
[380939776,1755909093493,-400.0,0.00014246,2]
[380939777,1755909093503,-400.0,0.00014246,2]
[380939778,1755909093514,-402.46898982,0.00014246,2]
[380939779,1755909093524,-2007.17,0.00014246,2]
[380939780,1755909093534,-941.75,0.00014246,2]
[380939781,1755909093545,-400.0,0.00014246,2]
[380939782,1755909093556,-400.0,0.00014246,2]
[380939783,1755909093565,-1107.09,0.00014246,2]
[380939784,1755909093576,-566.3,0.00014246,2]
[380939785,1755909093832,-971.09,0.00014246,2]
[380939786,1755909093843,-400.0,0.00014246,2]
[380939787,1755909093852,-585.02,0.00014246,2]
[380939788,1755909093862,-864.25,0.00014246,2]
[380939789,1755909093871,-400.0,0.00014246,2]
[380939790,1755909093881,-400.0,0.00014246,2]
[380939791,1755909093890,-1099.08,0.00014246,2]
[380939792,1755909093900,-676.57,0.00014246,2]
[380939793,1755909093909,-400.0,0.00014246,2]
[380939794,1755909093919,-400.0,0.00014246,2]
[380939795,1755909093928,-400.0,0.00014246,2]
[380939796,1755909093937,-749.92,0.00014246,2]
[380939797,1755909093947,-634.31,0.00014246,2]
[380939798,1755909093956,-894.75,0.00014246,2]
[380939799,1755909093966,-476.98,0.00014246,2]
[380939800,1755909093976,-455.35,0.00014246,2]
[380939801,1755909093986,-1015.51,0.00014246,2]
[380939802,1755909093996,-400.0,0.00014246,2]
[380939803,1755909094005,-634.38,0.00014246,2]
[380939804,1755909094015,-440.79,0.00014246,2]
[380939805,1755909094024,-560.43,0.00014246,2]
[380939806,1755909094034,-667.33,0.00014246,2]
[380939807,1755909094044,-556.68,0.00014246,2]
[380939808,1755909094054,-400.0,0.00014246,2]
[380939809,1755909094064,-811.19,0.00014246,2]
[380939810,1755909094074,-1376.17,0.00014246,2]
[380939811,1755909094084,-769.3,0.00014246,2]
[380939812,1755909094093,-661.11,0.00014246,2]
[380939813,1755909094103,-400.0,0.00014246,2]
[380939814,1755909094113,-400.0,0.00014246,2]
[380939815,1755909094123,-421.79,0.00014246,2]
[380939816,1755909094132,-531.99,0.00014246,2]
[380939817,1755909094143,-984.19,0.00014246,2]
[380939818,1755909094153,-913.58,0.00014246,2]
[380939819,1755909094162,-657.18,0.00014246,2]
[380939820,1755909094172,-490.26,0.00014246,2]
[380939821,1755909094182,-400.0,0.00014246,2]
[380939822,1755909094195,-641.16,0.00014246,2]
[380939823,1755909094204,-472.42,0.00014246,2]
[380939824,1755909094214,-400.0,0.00014246,2]
[380939825,1755909094224,-400.0,0.00014246,2]
[380939826,1755909094234,-400.0,0.00014246,2]
[380939827,1755909094246,-884.67,0.00014246,2]
[380939828,1755909094255,-1002.95,0.00014246,2]
[380939829,1755909094266,-400.0,0.00014246,2]
[380939830,1755909094277,-1347.44,0.00014246,2]
[380939831,1755909094287,-400.0,0.00014246,2]
[380939832,1755909094297,-400.0,0.00014246,2]
[380939833,1755909094307,-436.7,0.00014246,2]
[380939834,1755909094318,-400.0,0.00014246,2]
[380939835,1755909094328,-150.0,0.00014247,2]
[380939836,1755909094338,-150.0,0.00014248,2]
[380939837,1755909094348,-150.0,0.00014262,2]
[380939838,1755909094358,-253.0,0.00014266,2]
[380939839,1755909094368,-150.0,0.00014271,2]
[380939840,1755909094378,-253.0,0.00014292,2]
[380939841,1755909094387,-150.0,0.00014294,2]
[380939842,1755909094397,-150.0,0.00014294,2]
[380939843,1755909094406,-150.0,0.00014294,2]
[380939844,1755909094416,-150.0,0.00014294,2]
[380939845,1755909094426,-150.0,0.00014294,2]
[380939846,1755909094436,-150.0,0.00014294,2]
[380939847,1755909094446,-150.0,0.00014294,2]
[380939848,1755909094455,-150.0,0.00014306,2]
[380939849,1755909094465,-150.0,0.0001431,2]
[380939850,1755909094475,-150.0,0.0001434,2]
[380939851,1755909094484,-150.0,0.0001434,2]
[380939852,1755909094494,-150.0,0.00014345,2]
[380939853,1755909094504,-323.85,0.00014354,2]
[380939854,1755909094514,-150.0,0.00014358,2]
[380939855,1755909094524,-150.0,0.00014358,2]
[380939856,1755909094534,-150.0,0.00014358,2]
[380939857,1755909094544,-150.0,0.00014375,2]
[380939858,1755909094554,-150.0,0.00014379,2]
[380939859,1755909094564,-168.0,0.00014381,2]
[380939860,1755909094574,-2648.59,0.00014384,2]
[380939861,1755909094583,-1000.0,0.00014385,2]
[380939862,1755909094593,-150.0,0.00014387,2]
[380939863,1755909094602,-253.0,0.00014392,2]
[380939864,1755909094612,-150.0,0.00014396,2]
[380939865,1755909094622,-150.0,0.00014396,2]
[380939866,1755909094631,-1829.60864616,0.00014404,2]
[380939867,1755909094641,-150.0,0.00014406,2]
[380939868,1755909094651,-150.0,0.0001441,2]
[380939869,1755909094662,-168.0,0.00014416,2]
[380939870,1755909094672,-150.0,0.00014422,2]
[380939871,1755909094682,-150.0,0.00014422,2]
[380939872,1755909094693,-150.0,0.00014433,2]
[380939873,1755909094702,-736.0,0.00014441,2]
[380939874,1755909094712,-150.0,0.00014445,2]
[380939875,1755909094722,-150.0,0.00014447,2]
[380939876,1755909094732,-150.0,0.00014454,2]
[380939877,1755909094742,-150.0,0.00014464,2]
[380939878,1755909094751,-823.0,0.00014467,2]
[380939879,1755909094761,-151.0,0.00014474,2]
[380939880,1755909094771,-632.70120721,0.00014476,2]
[380939881,1755909094781,-150.0,0.0001448,2]
[380939882,1755909094792,-150.0,0.0001448,2]
[380939883,1755909094802,-150.0,0.00014498,2]
[380939884,1755909094812,-150.0,0.00014498,2]
[380939885,1755909094822,-150.0,0.00014501,2]
[380939886,1755909094832,-3292.0,0.00014507,2]
[380939887,1755909094842,-150.0,0.00014515,2]
[380939888,1755909094852,-150.0,0.00014519,2]
[380939889,1755909094862,-500.0,0.0001452,2]
[380939890,1755909094873,-150.0,0.0001452,2]
[380939891,1755909094883,-500.0,0.0001452,2]
[380939892,1755909094893,-729.0,0.0001452,2]
[380939893,1755909094903,-150.0,0.0001452,2]
[380939894,1755909094914,-500.0,0.0001452,2]
[380939895,1755909094923,-212.8207832,0.0001452,2]
[380939896,1755909094933,-150.0,0.0001452,2]
[380939897,1755909094943,-500.0,0.0001452,2]
[380939898,1755909094953,-500.0,0.0001452,2]
[380939899,1755909094963,-765.0,0.0001452,2]
[380939900,1755909094973,-500.0,0.0001452,2]
[380939901,1755909094982,-500.0,0.0001452,2]
[380939902,1755909094993,-150.0,0.0001452,2]
[380939903,1755909095002,-150.0,0.0001452,2]
[380939904,1755909095012,-400.0,0.0001452,2]
[380939905,1755909095022,-400.0,0.0001452,2]
[380939906,1755909095032,-400.0,0.0001452,2]
[380939907,1755909095042,-603.48,0.0001452,2]
[380939908,1755909095051,-612.02,0.0001452,2]
[380939909,1755909095061,-448.19,0.0001452,2]
[380939910,1755909095071,-400.0,0.0001452,2]
[380939911,1755909095080,-400.0,0.0001452,2]
[380939912,1755909095090,-153.492172,0.0001452,2]
[380939913,1755909095099,-431.57,0.0001452,2]
[380939914,1755909095109,-400.0,0.0001452,2]
[380939915,1755909095119,-400.0,0.0001452,2]
[380939916,1755909095129,-434.66,0.0001452,2]
[380939917,1755909095139,-405.61,0.0001452,2]
[380939918,1755909095149,-649.59,0.0001452,2]
[380939919,1755909095159,-681.46,0.0001452,2]
[380939920,1755909095169,-472.35,0.0001452,2]
[380939921,1755909095179,-400.0,0.0001452,2]
[380939922,1755909095192,-400.0,0.0001452,2]
[380939923,1755909095202,-400.0,0.0001452,2]
[380939924,1755909095212,-400.0,0.0001452,2]
[380939925,1755909095222,-409.04,0.0001452,2]
[380939926,1755909095232,-235.795947,0.0001452,2]
[380939927,1755909095243,-546.13,0.0001452,2]
[380939928,1755909095253,-534.48,0.0001452,2]
[380939929,1755909095264,-635.82,0.0001452,2]
[380939930,1755909095274,-400.0,0.0001452,2]
[380939931,1755909095284,-476.99,0.0001452,2]
[380939932,1755909095294,-400.0,0.0001452,2]
[380939933,1755909095304,-507.78,0.0001452,2]
[380939934,1755909095314,-400.0,0.0001452,2]
[380939935,1755909095324,-400.0,0.0001452,2]
[380939936,1755909095334,-400.0,0.0001452,2]
[380939937,1755909095344,-400.0,0.0001452,2]
[380939938,1755909095355,-744.95,0.0001452,2]
[380939939,1755909095364,-590.74,0.0001452,2]
[380939940,1755909095374,-400.0,0.0001452,2]
[380939941,1755909095384,-575.25,0.0001452,2]
[380939942,1755909095394,-400.0,0.0001452,2]
[380939943,1755909095404,-990.54657,0.0001452,2]
[380939944,1755909095414,-400.0,0.0001452,2]
[380939945,1755909095423,-400.0,0.0001452,2]
[380939946,1755909095433,-400.0,0.0001452,2]
[380939947,1755909095443,-400.0,0.0001452,2]
[380939948,1755909095454,-400.0,0.0001452,2]
[380939949,1755909095464,-400.0,0.0001452,2]
[380939950,1755909095474,-400.0,0.0001452,2]
[380939951,1755909095483,-400.0,0.0001452,2]
[380939952,1755909095494,-400.0,0.0001452,2]
[380939953,1755909095504,-400.0,0.0001452,2]
[380939954,1755909095514,-400.0,0.0001452,2]
[380939955,1755909095524,-477.98,0.0001452,2]
[380939956,1755909095534,-410.44,0.0001452,2]
[380939957,1755909095544,-400.0,0.0001452,2]
[380939958,1755909095554,-692.3,0.0001452,2]
[380939959,1755909095564,-600.48,0.0001452,2]
[380939960,1755909095574,-217.89694401,0.0001452,2]
[380939961,1755909095583,-400.0,0.0001452,2]
[380939962,1755909095593,-402.6,0.0001452,2]
[380939963,1755909095602,-400.0,0.0001452,2]
[380939964,1755909095612,-400.0,0.0001452,2]
[380939965,1755909095621,-400.0,0.0001452,2]
[380939966,1755909095631,-305.05181913,0.0001452,2]
[380939967,1755909095641,-685.13,0.0001452,2]
[380939968,1755909095651,-400.0,0.0001452,2]
[380939969,1755909095661,-400.0,0.0001452,2]
[380939970,1755909095671,-400.0,0.0001452,2]
[380939971,1755909095681,-400.0,0.0001452,2]
[380939972,1755909095691,-400.0,0.0001452,2]
[380939973,1755909095701,-580.21,0.0001452,2]
[380939974,1755909095710,-400.0,0.0001452,2]
[380939975,1755909095720,-628.41,0.0001452,2]
[380939976,1755909095730,-400.0,0.0001452,2]
[380939977,1755909095739,-699.23,0.0001452,2]
[380939978,1755909095750,-548.32045642,0.0001452,2]
[380939979,1755909095760,-400.0,0.0001452,2]
[380939980,1755909095770,-400.0,0.0001452,2]
[380939981,1755909095779,-400.0,0.0001452,2]
[380939982,1755909095789,-740.51,0.0001452,2]
[380939983,1755909095798,-440.08,0.0001452,2]
[380939984,1755909095808,-469.22,0.0001452,2]
[380939985,1755909095818,-622.9,0.0001452,2]
[380939986,1755909095828,-1031.94,0.0001452,2]
[380939987,1755909095837,-400.0,0.0001452,2]
[380939988,1755909095847,-344.56,0.0001452,2]
[380939989,1755909095857,-419.57,0.0001452,2]
[380939990,1755909095867,-400.0,0.0001452,2]
[380939991,1755909095877,-511.83,0.0001452,2]
[380939992,1755909095886,-620.5,0.0001452,2]
[380939993,1755909095896,-400.0,0.0001452,2]
[380939994,1755909095906,-608.92,0.0001452,2]
[380939995,1755909095916,-738.22,0.0001452,2]
[380939996,1755909095926,-699.72,0.0001452,2]
[380939997,1755909095935,-402.65,0.0001452,2]
[380939998,1755909095944,-400.0,0.0001452,2]
[380939999,1755909095955,-400.0,0.0001452,2]
[380940000,1755909095964,-566.41,0.0001452,2]
[380940001,1755909095974,-400.0,0.0001452,2]
[380940002,1755909095983,-400.0,0.0001452,2]
[380940003,1755909095993,-692.55,0.0001452,2]
[380940004,1755909096003,-400.0,0.0001452,2]
[380940005,1755909096012,-681.21,0.0001452,2]
[380940006,1755909096025,-400.0,0.0001452,2]
[380940007,1755909096035,-461.28,0.0001452,2]
[380940008,1755909096044,-489.89,0.0001452,2]
[380940009,1755909096054,-566.05,0.0001452,2]
[380940010,1755909096064,-414.87,0.0001452,2]
[380940011,1755909096073,-400.0,0.0001452,2]
[380940012,1755909096083,-400.0,0.0001452,2]
[380940013,1755909096092,-475.17,0.0001452,2]